{"text_format":"3","workbook":"xlsx","n_sheets":5,"sheets":["Juhlien yleiskatsaus","Vierasluettelo","Ruoka ja juoma","Muut ostokset","Istumajärjestys-ruudukko"],"not_rendered":{"defined_names":9},"read":"whole","date_system":"1900"}

{"sheet":"Juhlien yleiskatsaus","index":0,"n_rows":21,"n_cols":8,"rows_kept":21,"merged":[[6,3,6,4],[6,5,6,6],[9,1,9,2]]}
[]
[]
[null,"Juhlien yleiskatsaus"]
[]
[]
[null,"TAPAHTUMA",null,"YHTEENVETO VIERAISTA",{"$nulls":3},{"$f":"\"AVOIMET VASTAUSPYYNNÖT:  \"&OutstandingRSVPs","v":"AVOIMET VASTAUSPYYNNÖT:  2"}]
[null,"Isoäidin 75-vuotissyntymäpäivä",null,"VASTAUSPYYNTÖJEN YLEISKATSAUS",null,"KUSTANNUKSET VIERASTA KOHDEN",null,"BUDJETTI"]
[{"$nulls":3},"Vahvistetut vieraat","Vahvistettuja yhteensä","Ruoka","Muut","Yhteensä"]
[null,"PÄIVÄMÄÄRÄ",null,"Aikuiset",{"$f":"SUMIF(GuestTable[OSALLISTUU?],\"=Kyllä\",GuestTable[AIKUISET])","v":26},{"$f":"FoodTable[[#Totals],[KUSTANNUS AIKUISTA KOHDEN]]","v":{"v":12.690089084110037,"d":"12.69 €"}},{"$f":"EssentialCostPerGuest","v":{"v":18.695652173913043,"d":"18.70 €"}},{"$f":"(AttendeeSummary[[#This Row],[Ruoka]]+AttendeeSummary[[#This Row],[Muut]])*AdultTotal","v":{"v":816.0292727086002,"d":"816.03 €"}}]
[null,"2011-06-14",null,"Lapset",{"$f":"SUMIF(GuestTable[OSALLISTUU?],\"=Kyllä\",GuestTable[LAPSET])","v":20},{"$f":"FoodTable[[#Totals],[KUSTANNUS LASTA KOHDEN]]","v":{"v":7.252884190656953,"d":"7.25 €"}},{"$f":"EssentialCostPerGuest","v":{"v":18.695652173913043,"d":"18.70 €"}},{"$f":"(AttendeeSummary[[#This Row],[Ruoka]]+AttendeeSummary[[#This Row],[Muut]])*ChildrenTotal","v":{"v":518.9707272914,"d":"518.97 €"}}]
[{"$nulls":3},"Yhteensä",{"$f":"SUBTOTAL(109,AttendeeSummary[Vahvistettuja yhteensä])","v":46},{"$f":"\"Keskiarvo.     \"&TEXT(SUBTOTAL(101,AttendeeSummary[Ruoka]),\"# ##0,00 €\")","v":"Keskiarvo.     9,97 €"},{"$f":"\"Keskiarvo     \"&TEXT(SUBTOTAL(101,AttendeeSummary[Muut]),\"# ##0,00 €\")","v":"Keskiarvo     18,70 €"},{"$f":"SUBTOTAL(109,AttendeeSummary[Yhteensä])","v":{"v":1335,"d":"1,335.00 €"}}]
[null,"AIKA"]
[null,"klo 14–16.00"]
[]
[null,"SIJAINTI",null,"BUDJETTIYHTEENVETO"]
[null,"Tiina-tädin luona",null,"NIMIKE","LUKUMÄÄRÄ","BUDJETTI","KOKONAISKULUT","ERO"]
[{"$nulls":3},"Ruoka ja juoma",{"$f":"COUNTA(FoodTable[RUOKA- TAI JUOMANIMIKE])","v":18},{"v":500,"d":"500.00 €"},{"$f":"FoodTable[[#Totals],[KOKONAISKULUT]]","v":{"v":475,"d":"475.00 €"}},{"$f":"BudgetOverview[[#This Row],[BUDJETTI]]-BudgetOverview[[#This Row],[KOKONAISKULUT]]","v":{"v":25,"d":"25.00 €"}}]
[{"$nulls":3},{"$f":"Table1Header","v":"Laitteet ja tarvikkeet"},{"$f":"COUNTA(Table1Budget[Laitteet ja tarvikkeet])","v":7},{"v":400,"d":"400.00 €"},{"$f":"Table1Budget[[#Totals],[Kustannus]]","v":{"v":400,"d":"400.00 €"}},{"$f":"BudgetOverview[[#This Row],[BUDJETTI]]-BudgetOverview[[#This Row],[KOKONAISKULUT]]","v":{"v":0,"d":"0.00 €"}}]
[{"$nulls":3},{"$f":"Table2Header","v":"Koristelut"},{"$f":"COUNTA(Table2Budget[Koristelut])","v":4},{"v":150,"d":"150.00 €"},{"$f":"Table2Budget[[#Totals],[Kustannus]]","v":{"v":175,"d":"175.00 €"}},{"$f":"BudgetOverview[[#This Row],[BUDJETTI]]-BudgetOverview[[#This Row],[KOKONAISKULUT]]","v":{"v":-25,"d":"25.00 €"}}]
[{"$nulls":3},{"$f":"Table3Header","v":"Muut"},{"$f":"COUNTA(Table3Budget[Muut])","v":4},{"v":300,"d":"300.00 €"},{"$f":"Table3Budget[[#Totals],[Kustannus]]","v":{"v":285,"d":"285.00 €"}},{"$f":"BudgetOverview[[#This Row],[BUDJETTI]]-BudgetOverview[[#This Row],[KOKONAISKULUT]]","v":{"v":15,"d":"15.00 €"}}]
[{"$nulls":3},"Yhteensä",{"$f":"SUBTOTAL(109,BudgetOverview[LUKUMÄÄRÄ])","v":33},{"$f":"SUBTOTAL(109,BudgetOverview[BUDJETTI])","v":{"v":1350,"d":"1,350.00 €"}},{"$f":"SUBTOTAL(109,BudgetOverview[KOKONAISKULUT])","v":{"v":1335,"d":"1,335.00 €"}},{"$f":"BudgetOverview[[#Totals],[BUDJETTI]]-BudgetOverview[[#Totals],[KOKONAISKULUT]]","v":{"v":15,"d":"15.00 €"}}]

{"sheet":"Vierasluettelo","index":1,"n_rows":22,"n_cols":12,"rows_kept":22}
[]
[]
[null,"Vierasluettelo"]
[]
[]
[]
[null,"NIMI","OSOITE","POSTITOIMIPAIKKA","KAUPUNKI","POSTINUMERO","PUHELIN","SÄHKÖPOSTI","OSALLISTUU?","LAPSET","AIKUISET","YHTEENSÄ"]
[null,"Perhe 1","Osoite 1","Kaupunki 1","Alue 1","Postinumero 1","Puhelin 1","Sähköposti1","Ei",2,2,{"$f":"SUM(GuestTable[[#This Row],[LAPSET]:[AIKUISET]])","v":4}]
[null,"Perhe 2","Osoite 2","Kaupunki 2","Alue 2","Postinumero 2","Puhelin 2","Sähköposti2","Kyllä",1,1,{"$f":"SUM(GuestTable[[#This Row],[LAPSET]:[AIKUISET]])","v":2}]
[null,"Perhe 3","Osoite 3","Kaupunki 3","Alue 3","Postinumero 3","Puhelin 3","Sähköposti3","Kyllä",3,3,{"$f":"SUM(GuestTable[[#This Row],[LAPSET]:[AIKUISET]])","v":6}]
[null,"Perhe 4","Osoite 4","Kaupunki 4","Alue 4","Postinumero 4","Puhelin 4","Sähköposti4",null,null,2,{"$f":"SUM(GuestTable[[#This Row],[LAPSET]:[AIKUISET]])","v":2}]
[null,"Perhe 5","Osoite 5","Kaupunki 5","Alue 5","Postinumero 5","Puhelin 5","Sähköposti5","Kyllä",4,3,{"$f":"SUM(GuestTable[[#This Row],[LAPSET]:[AIKUISET]])","v":7}]
[null,"Perhe 6","Osoite 6","Kaupunki 6","Alue 6","Postinumero 6","Puhelin 6","Sähköposti6","Kyllä",2,2,{"$f":"SUM(GuestTable[[#This Row],[LAPSET]:[AIKUISET]])","v":4}]
[null,"Perhe 7","Osoite 7","Kaupunki 7","Alue 7","Postinumero 7","Puhelin 7","Sähköposti7","Kyllä",1,4,{"$f":"SUM(GuestTable[[#This Row],[LAPSET]:[AIKUISET]])","v":5}]
[null,"Perhe 8","Osoite 8","Kaupunki 8","Alue 8","Postinumero 8","Puhelin 8","Sähköposti8","Ei",5,3,{"$f":"SUM(GuestTable[[#This Row],[LAPSET]:[AIKUISET]])","v":8}]
[null,"Perhe 9","Osoite 9","Kaupunki 9","Alue 9","Postinumero 9","Puhelin 9","Sähköposti9","Kyllä",3,2,{"$f":"SUM(GuestTable[[#This Row],[LAPSET]:[AIKUISET]])","v":5}]
[null,"Perhe 10","Osoite 10","Kaupunki 10","Alue 10","Postinumero 10","Puhelin 10","Sähköposti10","Kyllä",null,4,{"$f":"SUM(GuestTable[[#This Row],[LAPSET]:[AIKUISET]])","v":4}]
[null,"Perhe 11","Osoite 11","Kaupunki 11","Alue 11","Postinumero 11","Puhelin 11","Sähköposti11","Kyllä",3,5,{"$f":"SUM(GuestTable[[#This Row],[LAPSET]:[AIKUISET]])","v":8}]
[null,"Perhe 12","Osoite 12","Kaupunki 12","Alue 12","Postinumero 12","Puhelin 12","Sähköposti12","Ei",2,3,{"$f":"SUM(GuestTable[[#This Row],[LAPSET]:[AIKUISET]])","v":5}]
[null,"Perhe 13","Osoite 13","Kaupunki 13","Alue 13","Postinumero 13","Puhelin 13","Sähköposti13","Kyllä",3,2,{"$f":"SUM(GuestTable[[#This Row],[LAPSET]:[AIKUISET]])","v":5}]
[null,"Perhe 14","Osoite 14","Kaupunki 14","Alue 14","Postinumero 14","Puhelin 14","Sähköposti14","Ei",null,1,{"$f":"SUM(GuestTable[[#This Row],[LAPSET]:[AIKUISET]])","v":1}]
[null,"Perhe 15","Osoite 15","Kaupunki 15","Alue 15","Postinumero 15","Puhelin 15","Sähköposti15",null,null,2,{"$f":"SUM(GuestTable[[#This Row],[LAPSET]:[AIKUISET]])","v":2}]

{"sheet":"Ruoka ja juoma","index":2,"n_rows":25,"n_cols":10,"rows_kept":25}
[]
[]
[null,"Ruoka ja juoma"]
[]
[null,"Kirjoita kustannukset ja arvioitu annosten määrä, niin kokonaisannosmäärät ja -kustannukset lasketaan automaattisesti osallistujien mukaan"]
[null,"RUOKA- TAI JUOMANIMIKE","KOKONAISKULUT","LASTEN ANNOKSET","AIKUISTEN ANNOKSET","ANNOKSET YHTEENSÄ","KUSTANNUS ANNOSTA KOHDEN","KUSTANNUS LASTA KOHDEN","KUSTANNUS AIKUISTA KOHDEN","HUOMAUTUKSET"]
[null,"Virvoitusjuomat",{"v":15,"d":"15.00 €"},0.5,2,{"$f":"(FoodTable[[#This Row],[LASTEN ANNOKSET]]*ChildrenTotal)+(FoodTable[[#This Row],[AIKUISTEN ANNOKSET]]*AdultTotal)","v":62},{"$f":"IFERROR(FoodTable[[#This Row],[KOKONAISKULUT]]/FoodTable[[#This Row],[ANNOKSET YHTEENSÄ]],\"\")","v":{"v":0.24193548387096775,"d":"0.24 €"}},{"$f":"IFERROR(FoodTable[[#This Row],[KUSTANNUS ANNOSTA KOHDEN]]*FoodTable[[#This Row],[LASTEN ANNOKSET]],\"\")","v":{"v":0.12096774193548387,"d":"0.12 €"}},{"$f":"IFERROR(FoodTable[[#This Row],[KUSTANNUS ANNOSTA KOHDEN]]*FoodTable[[#This Row],[AIKUISTEN ANNOKSET]],\"\")","v":{"v":0.4838709677419355,"d":"0.48 €"}},"2 litran pulloja"]
[null,"Mehupurkit",{"v":15,"d":"15.00 €"},2,0,{"$f":"(FoodTable[[#This Row],[LASTEN ANNOKSET]]*ChildrenTotal)+(FoodTable[[#This Row],[AIKUISTEN ANNOKSET]]*AdultTotal)","v":40},{"$f":"IFERROR(FoodTable[[#This Row],[KOKONAISKULUT]]/FoodTable[[#This Row],[ANNOKSET YHTEENSÄ]],\"\")","v":{"v":0.375,"d":"0.38 €"}},{"$f":"IFERROR(FoodTable[[#This Row],[KUSTANNUS ANNOSTA KOHDEN]]*FoodTable[[#This Row],[LASTEN ANNOKSET]],\"\")","v":{"v":0.75,"d":"0.75 €"}},{"$f":"IFERROR(FoodTable[[#This Row],[KUSTANNUS ANNOSTA KOHDEN]]*FoodTable[[#This Row],[AIKUISTEN ANNOKSET]],\"\")","v":{"v":0,"d":"0.00 €"}},"Omena ja viinirypäleet"]
[null,"Viini",{"v":50,"d":"50.00 €"},0,2,{"$f":"(FoodTable[[#This Row],[LASTEN ANNOKSET]]*ChildrenTotal)+(FoodTable[[#This Row],[AIKUISTEN ANNOKSET]]*AdultTotal)","v":52},{"$f":"IFERROR(FoodTable[[#This Row],[KOKONAISKULUT]]/FoodTable[[#This Row],[ANNOKSET YHTEENSÄ]],\"\")","v":{"v":0.9615384615384616,"d":"0.96 €"}},{"$f":"IFERROR(FoodTable[[#This Row],[KUSTANNUS ANNOSTA KOHDEN]]*FoodTable[[#This Row],[LASTEN ANNOKSET]],\"\")","v":{"v":0,"d":"0.00 €"}},{"$f":"IFERROR(FoodTable[[#This Row],[KUSTANNUS ANNOSTA KOHDEN]]*FoodTable[[#This Row],[AIKUISTEN ANNOKSET]],\"\")","v":{"v":1.9230769230769231,"d":"1.92 €"}}]
[null,"Kakku",{"v":75,"d":"75.00 €"},1,1,{"$f":"(FoodTable[[#This Row],[LASTEN ANNOKSET]]*ChildrenTotal)+(FoodTable[[#This Row],[AIKUISTEN ANNOKSET]]*AdultTotal)","v":46},{"$f":"IFERROR(FoodTable[[#This Row],[KOKONAISKULUT]]/FoodTable[[#This Row],[ANNOKSET YHTEENSÄ]],\"\")","v":{"v":1.6304347826086956,"d":"1.63 €"}},{"$f":"IFERROR(FoodTable[[#This Row],[KUSTANNUS ANNOSTA KOHDEN]]*FoodTable[[#This Row],[LASTEN ANNOKSET]],\"\")","v":{"v":1.6304347826086956,"d":"1.63 €"}},{"$f":"IFERROR(FoodTable[[#This Row],[KUSTANNUS ANNOSTA KOHDEN]]*FoodTable[[#This Row],[AIKUISTEN ANNOKSET]],\"\")","v":{"v":1.6304347826086956,"d":"1.63 €"}},"Tilaukset paikallisesta leipomosta"]
[null,"Jäätelö",{"v":20,"d":"20.00 €"},1,1.5,{"$f":"(FoodTable[[#This Row],[LASTEN ANNOKSET]]*ChildrenTotal)+(FoodTable[[#This Row],[AIKUISTEN ANNOKSET]]*AdultTotal)","v":59},{"$f":"IFERROR(FoodTable[[#This Row],[KOKONAISKULUT]]/FoodTable[[#This Row],[ANNOKSET YHTEENSÄ]],\"\")","v":{"v":0.3389830508474576,"d":"0.34 €"}},{"$f":"IFERROR(FoodTable[[#This Row],[KUSTANNUS ANNOSTA KOHDEN]]*FoodTable[[#This Row],[LASTEN ANNOKSET]],\"\")","v":{"v":0.3389830508474576,"d":"0.34 €"}},{"$f":"IFERROR(FoodTable[[#This Row],[KUSTANNUS ANNOSTA KOHDEN]]*FoodTable[[#This Row],[AIKUISTEN ANNOKSET]],\"\")","v":{"v":0.5084745762711864,"d":"0.51 €"}}]
[null,"Vanukaspurkki",{"v":15,"d":"15.00 €"},1,0,{"$f":"(FoodTable[[#This Row],[LASTEN ANNOKSET]]*ChildrenTotal)+(FoodTable[[#This Row],[AIKUISTEN ANNOKSET]]*AdultTotal)","v":20},{"$f":"IFERROR(FoodTable[[#This Row],[KOKONAISKULUT]]/FoodTable[[#This Row],[ANNOKSET YHTEENSÄ]],\"\")","v":{"v":0.75,"d":"0.75 €"}},{"$f":"IFERROR(FoodTable[[#This Row],[KUSTANNUS ANNOSTA KOHDEN]]*FoodTable[[#This Row],[LASTEN ANNOKSET]],\"\")","v":{"v":0.75,"d":"0.75 €"}},{"$f":"IFERROR(FoodTable[[#This Row],[KUSTANNUS ANNOSTA KOHDEN]]*FoodTable[[#This Row],[AIKUISTEN ANNOKSET]],\"\")","v":{"v":0,"d":"0.00 €"}},"Osta pakattuja purkkeja: vanilja ja suklaa"]
[null,"Täytetyt sienet",{"v":32,"d":"32.00 €"},1,2,{"$f":"(FoodTable[[#This Row],[LASTEN ANNOKSET]]*ChildrenTotal)+(FoodTable[[#This Row],[AIKUISTEN ANNOKSET]]*AdultTotal)","v":72},{"$f":"IFERROR(FoodTable[[#This Row],[KOKONAISKULUT]]/FoodTable[[#This Row],[ANNOKSET YHTEENSÄ]],\"\")","v":{"v":0.4444444444444444,"d":"0.44 €"}},{"$f":"IFERROR(FoodTable[[#This Row],[KUSTANNUS ANNOSTA KOHDEN]]*FoodTable[[#This Row],[LASTEN ANNOKSET]],\"\")","v":{"v":0.4444444444444444,"d":"0.44 €"}},{"$f":"IFERROR(FoodTable[[#This Row],[KUSTANNUS ANNOSTA KOHDEN]]*FoodTable[[#This Row],[AIKUISTEN ANNOKSET]],\"\")","v":{"v":0.8888888888888888,"d":"0.89 €"}},"Kermajuustolla ja makkaralla täytetyt sienet"]
[null,"Bruschetta-leivät",{"v":22,"d":"22.00 €"},0,3,{"$f":"(FoodTable[[#This Row],[LASTEN ANNOKSET]]*ChildrenTotal)+(FoodTable[[#This Row],[AIKUISTEN ANNOKSET]]*AdultTotal)","v":78},{"$f":"IFERROR(FoodTable[[#This Row],[KOKONAISKULUT]]/FoodTable[[#This Row],[ANNOKSET YHTEENSÄ]],\"\")","v":{"v":0.28205128205128205,"d":"0.28 €"}},{"$f":"IFERROR(FoodTable[[#This Row],[KUSTANNUS ANNOSTA KOHDEN]]*FoodTable[[#This Row],[LASTEN ANNOKSET]],\"\")","v":{"v":0,"d":"0.00 €"}},{"$f":"IFERROR(FoodTable[[#This Row],[KUSTANNUS ANNOSTA KOHDEN]]*FoodTable[[#This Row],[AIKUISTEN ANNOKSET]],\"\")","v":{"v":0.8461538461538461,"d":"0.85 €"}},"Tomaatti ja basilika "]
[null,"Savustettu lohi",{"v":50,"d":"50.00 €"},1,2,{"$f":"(FoodTable[[#This Row],[LASTEN ANNOKSET]]*ChildrenTotal)+(FoodTable[[#This Row],[AIKUISTEN ANNOKSET]]*AdultTotal)","v":72},{"$f":"IFERROR(FoodTable[[#This Row],[KOKONAISKULUT]]/FoodTable[[#This Row],[ANNOKSET YHTEENSÄ]],\"\")","v":{"v":0.6944444444444444,"d":"0.69 €"}},{"$f":"IFERROR(FoodTable[[#This Row],[KUSTANNUS ANNOSTA KOHDEN]]*FoodTable[[#This Row],[LASTEN ANNOKSET]],\"\")","v":{"v":0.6944444444444444,"d":"0.69 €"}},{"$f":"IFERROR(FoodTable[[#This Row],[KUSTANNUS ANNOSTA KOHDEN]]*FoodTable[[#This Row],[AIKUISTEN ANNOKSET]],\"\")","v":{"v":1.3888888888888888,"d":"1.39 €"}}]
[null,"Minirinkelit",{"v":20,"d":"20.00 €"},1,2,{"$f":"(FoodTable[[#This Row],[LASTEN ANNOKSET]]*ChildrenTotal)+(FoodTable[[#This Row],[AIKUISTEN ANNOKSET]]*AdultTotal)","v":72},{"$f":"IFERROR(FoodTable[[#This Row],[KOKONAISKULUT]]/FoodTable[[#This Row],[ANNOKSET YHTEENSÄ]],\"\")","v":{"v":0.2777777777777778,"d":"0.28 €"}},{"$f":"IFERROR(FoodTable[[#This Row],[KUSTANNUS ANNOSTA KOHDEN]]*FoodTable[[#This Row],[LASTEN ANNOKSET]],\"\")","v":{"v":0.2777777777777778,"d":"0.28 €"}},{"$f":"IFERROR(FoodTable[[#This Row],[KUSTANNUS ANNOSTA KOHDEN]]*FoodTable[[#This Row],[AIKUISTEN ANNOKSET]],\"\")","v":{"v":0.5555555555555556,"d":"0.56 €"}},"4 pussia - lajitelma"]
[null,"Kermajuusto",{"v":10,"d":"10.00 €"},1,2,{"$f":"(FoodTable[[#This Row],[LASTEN ANNOKSET]]*ChildrenTotal)+(FoodTable[[#This Row],[AIKUISTEN ANNOKSET]]*AdultTotal)","v":72},{"$f":"IFERROR(FoodTable[[#This Row],[KOKONAISKULUT]]/FoodTable[[#This Row],[ANNOKSET YHTEENSÄ]],\"\")","v":{"v":0.1388888888888889,"d":"0.14 €"}},{"$f":"IFERROR(FoodTable[[#This Row],[KUSTANNUS ANNOSTA KOHDEN]]*FoodTable[[#This Row],[LASTEN ANNOKSET]],\"\")","v":{"v":0.1388888888888889,"d":"0.14 €"}},{"$f":"IFERROR(FoodTable[[#This Row],[KUSTANNUS ANNOSTA KOHDEN]]*FoodTable[[#This Row],[AIKUISTEN ANNOKSET]],\"\")","v":{"v":0.2777777777777778,"d":"0.28 €"}},"2 suurta rasiaa"]
[null,"Kaprikset",{"v":12,"d":"12.00 €"},1,2,{"$f":"(FoodTable[[#This Row],[LASTEN ANNOKSET]]*ChildrenTotal)+(FoodTable[[#This Row],[AIKUISTEN ANNOKSET]]*AdultTotal)","v":72},{"$f":"IFERROR(FoodTable[[#This Row],[KOKONAISKULUT]]/FoodTable[[#This Row],[ANNOKSET YHTEENSÄ]],\"\")","v":{"v":0.16666666666666666,"d":"0.17 €"}},{"$f":"IFERROR(FoodTable[[#This Row],[KUSTANNUS ANNOSTA KOHDEN]]*FoodTable[[#This Row],[LASTEN ANNOKSET]],\"\")","v":{"v":0.16666666666666666,"d":"0.17 €"}},{"$f":"IFERROR(FoodTable[[#This Row],[KUSTANNUS ANNOSTA KOHDEN]]*FoodTable[[#This Row],[AIKUISTEN ANNOKSET]],\"\")","v":{"v":0.3333333333333333,"d":"0.33 €"}},"3 purkkia"]
[null,"Kanansiivet",{"v":45,"d":"45.00 €"},2,4,{"$f":"(FoodTable[[#This Row],[LASTEN ANNOKSET]]*ChildrenTotal)+(FoodTable[[#This Row],[AIKUISTEN ANNOKSET]]*AdultTotal)","v":144},{"$f":"IFERROR(FoodTable[[#This Row],[KOKONAISKULUT]]/FoodTable[[#This Row],[ANNOKSET YHTEENSÄ]],\"\")","v":{"v":0.3125,"d":"0.31 €"}},{"$f":"IFERROR(FoodTable[[#This Row],[KUSTANNUS ANNOSTA KOHDEN]]*FoodTable[[#This Row],[LASTEN ANNOKSET]],\"\")","v":{"v":0.625,"d":"0.63 €"}},{"$f":"IFERROR(FoodTable[[#This Row],[KUSTANNUS ANNOSTA KOHDEN]]*FoodTable[[#This Row],[AIKUISTEN ANNOKSET]],\"\")","v":{"v":1.25,"d":"1.25 €"}},"Ostokset paikallisesta kaupasta"]
[null,"Hummus",{"v":10,"d":"10.00 €"},4,6,{"$f":"(FoodTable[[#This Row],[LASTEN ANNOKSET]]*ChildrenTotal)+(FoodTable[[#This Row],[AIKUISTEN ANNOKSET]]*AdultTotal)","v":236},{"$f":"IFERROR(FoodTable[[#This Row],[KOKONAISKULUT]]/FoodTable[[#This Row],[ANNOKSET YHTEENSÄ]],\"\")","v":{"v":0.0423728813559322,"d":"0.04 €"}},{"$f":"IFERROR(FoodTable[[#This Row],[KUSTANNUS ANNOSTA KOHDEN]]*FoodTable[[#This Row],[LASTEN ANNOKSET]],\"\")","v":{"v":0.1694915254237288,"d":"0.17 €"}},{"$f":"IFERROR(FoodTable[[#This Row],[KUSTANNUS ANNOSTA KOHDEN]]*FoodTable[[#This Row],[AIKUISTEN ANNOKSET]],\"\")","v":{"v":0.2542372881355932,"d":"0.25 €"}},"Tee päivää aikaisemmin"]
[null,"Parmesaani-pitavoileipäkeksit",{"v":14,"d":"14.00 €"},4,6,{"$f":"(FoodTable[[#This Row],[LASTEN ANNOKSET]]*ChildrenTotal)+(FoodTable[[#This Row],[AIKUISTEN ANNOKSET]]*AdultTotal)","v":236},{"$f":"IFERROR(FoodTable[[#This Row],[KOKONAISKULUT]]/FoodTable[[#This Row],[ANNOKSET YHTEENSÄ]],\"\")","v":{"v":0.059322033898305086,"d":"0.06 €"}},{"$f":"IFERROR(FoodTable[[#This Row],[KUSTANNUS ANNOSTA KOHDEN]]*FoodTable[[#This Row],[LASTEN ANNOKSET]],\"\")","v":{"v":0.23728813559322035,"d":"0.24 €"}},{"$f":"IFERROR(FoodTable[[#This Row],[KUSTANNUS ANNOSTA KOHDEN]]*FoodTable[[#This Row],[AIKUISTEN ANNOKSET]],\"\")","v":{"v":0.3559322033898305,"d":"0.36 €"}},"Tee päivää aikaisemmin"]
[null,"Lajitelma vihanneksia",{"v":30,"d":"30.00 €"},4,10,{"$f":"(FoodTable[[#This Row],[LASTEN ANNOKSET]]*ChildrenTotal)+(FoodTable[[#This Row],[AIKUISTEN ANNOKSET]]*AdultTotal)","v":340},{"$f":"IFERROR(FoodTable[[#This Row],[KOKONAISKULUT]]/FoodTable[[#This Row],[ANNOKSET YHTEENSÄ]],\"\")","v":{"v":0.08823529411764706,"d":"0.09 €"}},{"$f":"IFERROR(FoodTable[[#This Row],[KUSTANNUS ANNOSTA KOHDEN]]*FoodTable[[#This Row],[LASTEN ANNOKSET]],\"\")","v":{"v":0.35294117647058826,"d":"0.35 €"}},{"$f":"IFERROR(FoodTable[[#This Row],[KUSTANNUS ANNOSTA KOHDEN]]*FoodTable[[#This Row],[AIKUISTEN ANNOKSET]],\"\")","v":{"v":0.8823529411764707,"d":"0.88 €"}},"Porkkanatikut, selleri, parsakaali, kukkakaali, punaiset ja vihreät paprikat"]
[null,"Juustopallot",{"v":15,"d":"15.00 €"},5,10,{"$f":"(FoodTable[[#This Row],[LASTEN ANNOKSET]]*ChildrenTotal)+(FoodTable[[#This Row],[AIKUISTEN ANNOKSET]]*AdultTotal)","v":360},{"$f":"IFERROR(FoodTable[[#This Row],[KOKONAISKULUT]]/FoodTable[[#This Row],[ANNOKSET YHTEENSÄ]],\"\")","v":{"v":0.041666666666666664,"d":"0.04 €"}},{"$f":"IFERROR(FoodTable[[#This Row],[KUSTANNUS ANNOSTA KOHDEN]]*FoodTable[[#This Row],[LASTEN ANNOKSET]],\"\")","v":{"v":0.20833333333333331,"d":"0.21 €"}},{"$f":"IFERROR(FoodTable[[#This Row],[KUSTANNUS ANNOSTA KOHDEN]]*FoodTable[[#This Row],[AIKUISTEN ANNOKSET]],\"\")","v":{"v":0.41666666666666663,"d":"0.42 €"}},"Lajitelma: kermajuusto, pähkinäinen kova juusto"]
[null,"Voileipäkeksit",{"v":25,"d":"25.00 €"},5,10,{"$f":"(FoodTable[[#This Row],[LASTEN ANNOKSET]]*ChildrenTotal)+(FoodTable[[#This Row],[AIKUISTEN ANNOKSET]]*AdultTotal)","v":360},{"$f":"IFERROR(FoodTable[[#This Row],[KOKONAISKULUT]]/FoodTable[[#This Row],[ANNOKSET YHTEENSÄ]],\"\")","v":{"v":0.06944444444444445,"d":"0.07 €"}},{"$f":"IFERROR(FoodTable[[#This Row],[KUSTANNUS ANNOSTA KOHDEN]]*FoodTable[[#This Row],[LASTEN ANNOKSET]],\"\")","v":{"v":0.3472222222222222,"d":"0.35 €"}},{"$f":"IFERROR(FoodTable[[#This Row],[KUSTANNUS ANNOSTA KOHDEN]]*FoodTable[[#This Row],[AIKUISTEN ANNOKSET]],\"\")","v":{"v":0.6944444444444444,"d":"0.69 €"}},"Lajitelma"]
[null,"Yhteensä",{"$f":"SUBTOTAL(109,FoodTable[KOKONAISKULUT])","v":{"v":475,"d":"475.00 €"}},{"$f":"SUBTOTAL(109,FoodTable[LASTEN ANNOKSET])","v":34.5},{"$f":"SUBTOTAL(109,FoodTable[AIKUISTEN ANNOKSET])","v":65.5},{"$f":"SUBTOTAL(109,FoodTable[ANNOKSET YHTEENSÄ])","v":2393},{"$f":"SUBTOTAL(109,FoodTable[KUSTANNUS ANNOSTA KOHDEN])","v":{"v":6.915706603622084,"d":"6.92 €"}},{"$f":"SUBTOTAL(109,FoodTable[KUSTANNUS LASTA KOHDEN])","v":{"v":7.252884190656953,"d":"7.25 €"}},{"$f":"SUBTOTAL(109,FoodTable[KUSTANNUS AIKUISTA KOHDEN])","v":{"v":12.690089084110037,"d":"12.69 €"}}]

{"sheet":"Muut ostokset","index":3,"n_rows":30,"n_cols":5,"rows_kept":30,"merged":[[14,1,14,4],[22,1,22,4]]}
[]
[]
[null,"Muut ostokset"]
[]
[]
[null,"Laitteet ja tarvikkeet","Kustannus","Ostettu","Huomautukset"]
[null,"Huoneen/salin vuokra",{"v":250,"d":"250.00 €"},"Kyllä"]
[null,"Pöytäliinat",{"v":30,"d":"30.00 €"},"Kyllä","Vuokra"]
[null,"Pöydät ja tuolit",{"v":0,"d":"0.00 €"},null,"Sisältyy salin hintaan"]
[null,"Servetit",{"v":25,"d":"25.00 €"}]
[null,"Lautasliinat",{"v":20,"d":"20.00 €"},null,"Vuokra"]
[null,"Kattaus",{"v":50,"d":"50.00 €"},null,"Vuokra"]
[null,"Lasitavara",{"v":25,"d":"25.00 €"},null,"Vuokra"]
[null,"Yhteensä",{"$f":"SUBTOTAL(109,Table1Budget[Kustannus])","v":{"v":400,"d":"400.00 €"}}]
[]
[]
[null,"Koristelut","Kustannus","Ostettu","Huomautukset"]
[null,"Ilmapallot",{"v":25,"d":"25.00 €"}]
[null,"Heliumsäiliö",{"v":50,"d":"50.00 €"},null,"Vuokra"]
[null,"Koriste-esineet",{"v":100,"d":"100.00 €"},"Kyllä","Yhteensä 10"]
[null,"Lasimaljakot",{"v":0,"d":"0.00 €"},null,"Lainataan Tanjalta"]
[null,"Yhteensä",{"$f":"SUBTOTAL(109,Table2Budget[Kustannus])","v":{"v":175,"d":"175.00 €"}}]
[]
[]
[null,"Muut","Kustannus","Ostettu","Huomautukset"]
[null,"Kutsut",{"v":50,"d":"50.00 €"},"Kyllä"]
[null,"Postikulut",{"v":60,"d":"60.00 €"},"Kyllä"]
[null,"Valokuvaaja",{"v":125,"d":"125.00 €"},null,"2 tuntia (klo 14-16.00)"]
[null,"Pikkulahjat",{"v":50,"d":"50.00 €"}]
[null,"Yhteensä",{"$f":"SUBTOTAL(109,Table3Budget[Kustannus])","v":{"v":285,"d":"285.00 €"}}]

{"sheet":"Istumajärjestys-ruudukko","index":4,"n_rows":43,"n_cols":34,"rows_kept":43,"merged":[[35,0,35,17],[35,19,35,33]]}
["Istumajärjestys"]
{"$rows_empty":33}
[{"$nulls":33},"*1 neliö = noin 30 x 30 cm"]
["Huomautukset",{"$nulls":18},{"$f":"\"Vieraita vahvistettu yhteensä:  \"&ConfirmedGuests","v":"Vieraita vahvistettu yhteensä:  46"}]
[{"$nulls":19},"Voit käyttää mitä tahansa seuraavista pöytäkattauksista:"]
[{"$nulls":20},{"$f":"ROUNDUP(ConfirmedGuests/6,0)&\" pyöreää 1,4 metrin pöytää (6 paikkaa)\"","v":"8 pyöreää 1,4 metrin pöytää (6 paikkaa)"}]
[{"$nulls":20},{"$f":"ROUNDUP(ConfirmedGuests/8,0) &\" pyöreää 1,6 metrin pöytää (8 paikkaa)\"","v":"6 pyöreää 1,6 metrin pöytää (8 paikkaa)"}]
[{"$nulls":20},{"$f":"ROUNDUP(ConfirmedGuests/10,0)&\"pyöreää 1,8 metrin pöytää (10 paikkaa)\"","v":"5pyöreää 1,8 metrin pöytää (10 paikkaa)"}]
[{"$nulls":20},{"$f":"ROUNDUP(ConfirmedGuests/6,0)& \" suorakaiteen muotoista 80 x 180 cm:n pöytää (6 paikkaa)\"","v":"8 suorakaiteen muotoista 80 x 180 cm:n pöytää (6 paikkaa)"}]
[{"$nulls":20},{"$f":"ROUNDUP(ConfirmedGuests/8,0)&\" suorakaiteen muotoista 80 x 250 cm:n pöytää (8 paikkaa)\"","v":"6 suorakaiteen muotoista 80 x 250 cm:n pöytää (8 paikkaa)"}]
[{"$nulls":19},"(Suositeltava pöytien väli: 1 metri)"]